fUSD/lending_fUSD_20250606
["ID","MTS","AMOUNT","RATE_DAILY","PERIOD"]
[364765925,1749233442727,-972.03,0.00027397,5]
[364765926,1749233442736,-480.0,0.00027397,5]
[364765927,1749233442746,-1475.0,0.00027397,5]
[364765928,1749233442756,-480.0,0.00027397,5]
[364765929,1749233442765,-6211.94,0.00027397,5]
[364765930,1749233442775,-2398.03,0.00027397,5]
[364765931,1749233442784,-480.0,0.00027397,5]
[364765932,1749233442794,-720.83,0.00027397,5]
[364765933,1749233442803,-480.0,0.00027397,5]
[364765934,1749233442812,-480.0,0.00027397,5]
[364765935,1749233442825,-480.0,0.00027397,5]
[364765936,1749233442835,-480.0,0.00027397,5]
[364765937,1749233442844,-1234.87,0.00027397,5]
[364765938,1749233442854,-480.0,0.00027397,5]
[364765939,1749233442863,-480.0,0.00027397,5]
[364765940,1749233442873,-480.0,0.00027397,5]
[364765941,1749233442883,-321.65251791,0.00027397,5]
[364765942,1749233442893,-590.32,0.00027397,5]
[364765943,1749233442903,-480.0,0.00027397,5]
[364765944,1749233442912,-5829.87,0.00027397,5]
[364765945,1749233442921,-3491.22,0.00027397,5]
[364765946,1749233442930,-480.0,0.00027397,5]
[364765947,1749233442940,-480.0,0.00027397,5]
[364765948,1749233442949,-480.0,0.00027397,5]
[364765949,1749233442959,-488.24,0.00027397,5]
[364765950,1749233442968,-484.88468181,0.00027397,5]
[364765951,1749233442977,-480.0,0.00027397,5]
[364765952,1749233442987,-480.0,0.00027397,5]
[364765953,1749233442997,-934.49,0.00027397,5]
[364765954,1749233443007,-480.0,0.00027397,5]
[364765955,1749233443016,-480.0,0.00027397,5]
[364765956,1749233443025,-1752.85,0.00027397,5]
[364765957,1749233443034,-953.88,0.00027397,5]
[364765958,1749233443043,-480.0,0.00027397,5]
[364765959,1749233443052,-493.59920009,0.00027397,5]
[364765960,1749233443061,-480.0,0.00027397,5]
[364765961,1749233443070,-622.8,0.00027397,5]
[364765962,1749233443079,-901.85,0.00027397,5]
[364765963,1749233443088,-480.0,0.00027397,5]
[364765964,1749233443097,-2426.96,0.00027397,5]
[364765965,1749233443106,-1135.12,0.00027397,5]
[364765966,1749233443115,-480.0,0.00027397,5]
[364765967,1749233443123,-480.0,0.00027397,5]
[364765968,1749233443132,-13319.4,0.00027397,5]
[364765969,1749233443141,-1663.0,0.00027397,5]
[364765970,1749233443150,-480.0,0.00027397,5]
[364765971,1749233443159,-499.04,0.00027397,5]
[364765972,1749233443168,-480.0,0.00027397,5]
[364765973,1749233443178,-480.0,0.00027397,5]
[364765974,1749233443187,-3386.71,0.00027397,5]
[364765975,1749233443196,-2268.13,0.00027397,5]
[364765976,1749233443208,-480.0,0.00027397,5]
[364765977,1749233443218,-759.41,0.00027397,5]
[364765978,1749233443227,-482.3023626,0.00027397,5]
[364765979,1749233443236,-480.0,0.00027397,5]
[364765980,1749233443248,-1133.19,0.00027397,5]
[364765981,1749233443260,-480.0,0.00027397,5]
[364765982,1749233443269,-1488.12,0.00027397,5]
[364765983,1749233443279,-480.0,0.00027397,5]
[364765984,1749233443288,-480.0,0.00027397,5]
[364765985,1749233443298,-480.0,0.00027397,5]
[364765986,1749233443308,-480.0,0.00027397,5]
[364765987,1749233443317,-844.38,0.00027397,5]
[364765988,1749233443327,-1239.38,0.00027397,5]
[364765989,1749233443336,-638.52,0.00027397,5]
[364765990,1749233443346,-480.0,0.00027397,5]
[364765991,1749233443355,-480.0,0.00027397,5]
[364765992,1749233443365,-1349.03,0.00027397,5]
[364765993,1749233443374,-1696.47,0.00027397,5]
[364765994,1749233443383,-525.01,0.00027397,5]
[364765995,1749233443392,-2274.0,0.00027397,5]
[364765996,1749233443401,-534.34,0.00027397,5]
[364765997,1749233443411,-480.0,0.00027397,5]
[364765998,1749233443420,-611.19,0.00027397,5]
[364765999,1749233443429,-480.0,0.00027397,5]
[364766000,1749233443438,-905.06,0.00027397,5]
[364766001,1749233443448,-480.0,0.00027397,5]
[364766002,1749233443457,-480.0,0.00027397,5]
[364766003,1749233443466,-480.0,0.00027397,5]
[364766004,1749233443477,-1547.2,0.00027397,5]
[364766005,1749233443486,-480.0,0.00027397,5]
[364766006,1749233443495,-480.0,0.00027397,5]
[364766007,1749233443504,-480.0,0.00027397,5]
[364766008,1749233443512,-480.0,0.00027397,5]
[364766009,1749233443522,-480.0,0.00027397,5]
[364766010,1749233443531,-2672.06,0.00027397,5]
[364766011,1749233443540,-1532.76,0.00027397,5]
[364766012,1749233443549,-547.91,0.00027397,5]
[364766013,1749233443558,-540.73,0.00027397,5]
[364766014,1749233443567,-480.0,0.00027397,5]
[364766015,1749233443576,-500.98,0.00027397,5]
[364766016,1749233443585,-1858.21,0.00027397,5]
[364766017,1749233443594,-3873.55,0.00027397,5]
[364766018,1749233443603,-500.0,0.00027397,5]
[364766019,1749233443611,-500.0,0.00027397,5]
[364766020,1749233443620,-480.0,0.00027397,5]
[364766021,1749233443630,-500.0,0.00027397,5]
[364766022,1749233443640,-582.58,0.00027397,5]
[364766023,1749233443648,-480.0,0.00027397,5]
[364766024,1749233443657,-1504.97,0.00027397,5]
[364766025,1749233443666,-480.0,0.00027397,5]
[364766026,1749233443675,-480.0,0.00027397,5]
[364766027,1749233443684,-672.14,0.00027397,5]
[364766028,1749233443694,-222.79240423,0.00027397,5]
[364766029,1749233443702,-480.0,0.00027397,5]
[364766030,1749233443711,-480.0,0.00027397,5]
[364766031,1749233443720,-4095.4,0.00027397,5]
[364766032,1749233443729,-500.0,0.00027397,5]
[364766033,1749233443738,-500.0,0.00027397,5]
[364766034,1749233443747,-480.0,0.00027397,5]
[364766035,1749233443756,-795.8,0.00027397,5]
[364766036,1749233443765,-4273.56,0.00027397,5]
[364766037,1749233443775,-480.0,0.00027397,5]
[364766038,1749233443783,-1134.7,0.00027397,5]
[364766039,1749233443793,-480.0,0.00027397,5]
[364766040,1749233443802,-1315.2,0.00027397,5]
[364766041,1749233443811,-480.0,0.00027397,5]
[364766042,1749233443822,-480.0,0.00027397,5]
[364766043,1749233443833,-480.0,0.00027397,5]
[364766044,1749233443842,-47799.79,0.00027397,5]
[364766045,1749233443852,-480.0,0.00027397,5]
[364766046,1749233443861,-7498.44,0.00027397,5]
[364766047,1749233443871,-480.0,0.00027397,5]
[364766048,1749233443881,-480.0,0.00027397,5]
[364766049,1749233443890,-480.0,0.00027397,5]
[364766050,1749233443900,-1012.59,0.00027397,5]
[364766051,1749233443910,-1338.85,0.00027397,5]
[364766052,1749233443920,-5919.82,0.00027397,5]
[364766053,1749233443929,-480.0,0.00027397,5]
[364766054,1749233443939,-2040.71,0.00027397,5]
[364766055,1749233443948,-585.35,0.00027397,5]
[364766056,1749233443957,-480.0,0.00027397,5]
[364766057,1749233443966,-480.0,0.00027397,5]
[364766058,1749233443975,-480.0,0.00027397,5]
[364766059,1749233443984,-3475.71,0.00027397,5]
[364766060,1749233443993,-480.0,0.00027397,5]
[364766061,1749233444003,-480.0,0.00027397,2]
[364766062,1749233444012,-480.0,0.00027397,5]
[364766063,1749233444020,-678.87,0.00027397,5]
[364766064,1749233444030,-2071.58,0.00027397,5]
[364766065,1749233444039,-480.0,0.00027397,5]
[364766066,1749233444048,-616.8,0.00027397,5]
[364766067,1749233444058,-528.28646264,0.00027397,5]
[364766068,1749233444067,-1440.22,0.00027397,5]
[364766069,1749233444076,-816.9,0.00027397,5]
[364766070,1749233444086,-1013.45,0.00027397,5]
[364766071,1749233444095,-480.0,0.00027397,2]
[364766072,1749233444104,-1000.0,0.00027397,5]
[364766073,1749233444113,-1120.86,0.00027397,5]
[364766074,1749233444122,-1366.13,0.00027397,5]
[364766075,1749233444132,-230.36690074,0.00027397,2]
[364766076,1749233444140,-480.0,0.00027397,5]
[364766077,1749233444150,-480.0,0.00027397,5]
[364766078,1749233444160,-483.91,0.00027397,5]
[364766079,1749233444169,-561.71,0.00027397,5]
[364766080,1749233444178,-2488.85,0.00027397,5]
[364766081,1749233444188,-630.41,0.00027397,5]
[364766082,1749233444197,-504.04,0.00027397,2]
[364766083,1749233444207,-161.34,0.00027397,2]
[364766084,1749233444217,-258.15469534,0.00027441,2]
[364766085,1749233444226,-1300.0,0.000275,10]
[364766086,1749233444236,-4105.30197245,0.00027506,2]
[364766087,1749233444246,-150.24,0.0002753,2]
[364766088,1749233444256,-16022.7951929,0.0002753,2]
[364766089,1749233444265,-11445.62056649,0.00027531,2]
[364766090,1749233444850,-711.74418619,0.00027531,2]
[364766091,1749233444862,-158.54116462,0.00027531,2]
[364766092,1749233444874,-15978.64019745,0.00027541,2]
[364766093,1749233444885,-32089.74538135,0.00027541,2]
[364766094,1749233444895,-41053.0197245,0.00027541,2]
[364766095,1749233444905,-500.0,0.0002755,2]
[364766096,1749233444915,-48068.3855788,0.00027551,2]
[364766097,1749233444924,-4838.44931535,0.00027551,2]
[364766099,1749233445968,-200.01393345,0.00024614,2]
[364766100,1749233445978,-250.0,0.0002587,2]
[364766101,1749233445989,-599.13134269,0.00027197,2]
[364766103,1749233446005,-1966.58593694,0.00027197,2]
[364766104,1749233446015,-2565.71727962,0.00027281,2]
[364766105,1749233446024,-480.0,0.00027397,5]
[364766106,1749233446034,-480.0,0.00027397,5]
[364766107,1749233446043,-26079.43859655,0.00027551,2]
[364766112,1749233577815,5888.0,0.00035616,120]
[364766115,1749233802386,5888.0,0.00035616,120]
[364766117,1749234308182,2853.79241231,0.0002,2]
[364766118,1749234308218,2853.79241231,0.0002,2]
[364766119,1749234308247,2853.79241231,0.0002,2]
[364766120,1749234308273,2853.79241231,0.0002,2]
[364766121,1749234308301,2853.79241231,0.0002,2]
[364766122,1749234308327,2853.79241231,0.0002,2]
[364766123,1749234308353,2853.79241231,0.0002,2]
[364766124,1749234308378,2853.79241231,0.0002,2]
[364766125,1749234308402,2853.79241231,0.0002,2]
[364766126,1749234308427,2853.79241231,0.0002,2]
[364766127,1749234308453,35961.74,0.0002,2]
[364766128,1749234308478,20358.7945,0.0002,2]
[364766129,1749234308501,20358.7945,0.0002,2]
[364766130,1749234309360,20358.7945,0.0002,2]
[364766131,1749234309426,20358.7945,0.0002,2]
[364766132,1749234309451,20358.7945,0.0002,2]
[364766133,1749234309475,20358.7945,0.0002,2]
[364766134,1749234309499,20358.7945,0.0002,2]
[364766135,1749234309522,20358.7945,0.0002,2]
[364766136,1749234309545,12372.99527285,0.0002,2]
[364766137,1749234310206,2516.2868832,0.0002,2]
[364766139,1749234347837,157.38,0.00013699,2]
[364766141,1749234390400,150.0,0.0002,2]
[364766158,1749234477448,5162.13234395,0.0002,2]
[364766159,1749234477470,20358.7945,0.0002,2]
[364766160,1749234477490,20358.7945,0.0002,2]
[364766161,1749234477511,20358.7945,0.0002,2]
[364766162,1749234477530,20358.7945,0.0002,2]
[364766163,1749234477697,20358.7945,0.0002,2]
[364766164,1749234477719,20358.7945,0.0002,2]
[364766165,1749234477741,20358.7945,0.0002,2]
[364766166,1749234477761,20358.7945,0.0002,2]
[364766167,1749234477782,20358.7945,0.0002,2]
[364766168,1749234477802,20358.7945,0.0002,2]
[364766169,1749234477822,20358.7945,0.0002,2]
[364766170,1749234477842,20358.7945,0.0002,2]
[364766171,1749234477862,20358.7945,0.0002,2]
[364766172,1749234477883,20358.7945,0.0002,2]
[364766173,1749234477903,20358.7945,0.0002,2]
[364766174,1749234477923,20358.7945,0.0002,2]
[364766175,1749234477943,20358.7945,0.0002,2]
[364766176,1749234477965,20358.7945,0.0002,2]
[364766177,1749234477985,20358.7945,0.0002,2]
[364766178,1749234478006,20358.7945,0.0002,2]
[364766179,1749234478027,20358.7945,0.0002,2]
[364766180,1749234478048,20358.7945,0.0002,2]
[364766181,1749234478069,20358.7945,0.0002,2]
[364766182,1749234478089,15390.69428738,0.0002,2]
[364766189,1749234511739,150.0,0.0002,2]
[364766196,1749234522654,4818.10021262,0.000194,2]
[364766197,1749234522675,20358.7945,0.000194,2]
[364766198,1749234522695,20358.7945,0.000194,2]
[364766199,1749234522716,20358.7945,0.000194,2]
[364766200,1749234522736,20358.7945,0.000194,2]
[364766201,1749234522757,20358.7945,0.000194,2]
[364766202,1749234522777,20358.7945,0.000194,2]
[364766203,1749234522797,20358.7945,0.000194,2]
[364766204,1749234522817,20358.7945,0.000194,2]
[364766205,1749234522837,20358.7945,0.000194,2]
[364766206,1749234522858,20358.7945,0.000194,2]
[364766207,1749234522879,20358.7945,0.000194,2]
[364766208,1749234522899,5786.59396497,0.000194,2]
[364766219,1749234611429,300.0,0.0002,2]
[364766220,1749234630876,150.0,0.0002,2]
[364766230,1749234631847,-1424.60352,0.0002001,2]
[364766231,1749234631901,-618.46325219,0.0002001,2]
[364766232,1749234632067,-1315.8,0.0002001,2]
[364766233,1749234632078,-1450.9347139,0.0002001,2]
[364766234,1749234632087,-157.38,0.00020187,2]
[364766235,1749234632100,-154.103675,0.000205,2]
[364766236,1749234632110,-300.0,0.00020548,2]
[364766237,1749234632119,-300.0,0.00021096,2]
[364766239,1749234632128,-300.0,0.00021644,2]
[364766241,1749234632138,-699.02955631,0.00022055,2]
[364766242,1749234632147,-300.0,0.00022192,2]
[364766243,1749234632157,-300.0,0.0002274,2]
[364766244,1749234632166,-648.0,0.00023288,2]
[364766245,1749234632175,-300.0,0.00023288,2]
[364766247,1749234632185,-1246.78,0.00023522,2]
[364766249,1749234632195,-300.0,0.00023836,2]
[364766250,1749234632205,-203.0,0.0002434,2]
[364766251,1749234632214,-300.0,0.00024384,2]
[364766252,1749234632223,-1200.0,0.00024899,2]
[364766253,1749234632233,-845.66921572,0.000249,12]
[364766255,1749234632242,-845.66921566,0.000249,12]
[364766257,1749234632252,-845.66921566,0.000249,12]
[364766259,1749234632265,-845.66921566,0.000249,12]
[364766261,1749234632274,-300.0,0.00024932,2]
[364766262,1749234632283,-845.66921566,0.00024969,12]
[364766263,1749234632293,-300.0,0.00025479,2]
[364766264,1749234632302,-845.66921566,0.00025486,13]
[364766265,1749234632312,-173.18,0.00025531,2]
[364766266,1749234632321,-1221.31,0.00025555,2]
[364766267,1749234632330,-250.0,0.00025606,2]
[364766268,1749234632343,-200.0,0.00025646,2]
[364766269,1749234632353,-1320.47,0.00025662,2]
[364766270,1749234632363,-200.0,0.00025728,2]
[364766271,1749234632374,-563.48924462,0.00025736,2]
[364766272,1749234632383,-156.46,0.00025737,2]
[364766273,1749234632393,-200.0,0.0002578,2]
[364766274,1749234632403,-631.56,0.00025784,30]
[364766276,1749234632413,-284.41680871,0.00025786,2]
[364766280,1749234632436,-962.36319129,0.00025786,2]
[364766282,1749234632446,-150.0,0.00025791,2]
[364766284,1749234632457,-196.61,0.00025799,2]
[364766287,1749234632467,-857.33500755,0.00025985,2]
[364766290,1749234632480,-697.86009245,0.00025985,2]
[364766293,1749234632490,-770.0,0.00026003,2]
[364766296,1749234632500,-845.66921566,0.00026003,14]
[364766299,1749234632509,-300.0,0.00026027,2]
[364766302,1749234632519,-1104.01,0.00026062,2]
[364766305,1749234632529,-8974.80104482,0.0002608,2]
[364766308,1749234632538,-3149.17,0.00026085,2]
[364766311,1749234632547,-151.0,0.00026116,2]
[364766314,1749234632558,-151.0,0.00026116,2]
[364766317,1749234632567,-1817.00334202,0.00026116,2]
[364766320,1749234632579,-140.85265798,0.00026116,2]
[364766322,1749234632588,-1000.0,0.00026116,2]
[364766324,1749234632599,-151.0,0.00026116,2]
[364766326,1749234632608,-500.0,0.00026116,2]
[364766328,1749234632618,-500.0,0.00026116,2]
[364766330,1749234632627,-500.0,0.00026116,2]
[364766332,1749234632637,-800.0,0.00026116,2]
[364766334,1749234632646,-11.44492794,0.00026116,2]
[364766826,1749234637650,-788.55507206,0.00026116,2]
[364766828,1749234637659,-500.0,0.00026116,2]
[364766831,1749234637671,-668.65185757,0.00026116,2]
[364766832,1749234637679,-800.0,0.00026116,2]
[364766834,1749234637688,-800.0,0.00026116,2]
[364766836,1749234637698,-500.0,0.00026116,2]
[364766838,1749234637707,-800.0,0.00026116,2]
[364766840,1749234637716,-500.0,0.00026116,2]
[364766842,1749234637725,-800.0,0.00026116,2]
[364766844,1749234637734,-643.19126773,0.00026116,2]
[364766846,1749234637744,-151.0,0.00026116,2]
[364766848,1749234637752,-800.0,0.00026116,2]
[364766850,1749234637761,-800.0,0.00026116,2]
[364766852,1749234637770,-800.0,0.00026116,2]
[364766854,1749234637780,-800.0,0.00026116,2]
[364766856,1749234637789,-800.0,0.00026116,2]
[364766858,1749234637798,-800.0,0.00026116,2]
[364766860,1749234637808,-800.0,0.00026116,2]
[364766862,1749234637816,-800.0,0.00026116,2]
[364766864,1749234637826,-200.0,0.00026116,2]
[364766866,1749234637835,-263.83983015,0.00026116,2]
[364766868,1749234637846,-207.4,0.00026116,2]
[364766870,1749234637855,-300.0,0.00026129,2]
[364766872,1749234637864,-1000.0,0.00026131,2]
[364766874,1749234637873,-23900.0,0.00026131,2]
[364766876,1749234637882,-8111.4,0.00026146,2]
[364766878,1749234637891,-151.0,0.00026171,2]
[364766880,1749234637901,-2030.296672,0.00026171,2]
[364766882,1749234637910,-5471.57,0.00026192,2]
[364766884,1749234637919,-1000.0,0.000262,2]
[364766886,1749234637929,-2105.41764886,0.00026226,2]
[364766888,1749234637938,-228.94,0.00026241,2]
[364766890,1749234637947,-16093.89,0.00026241,2]
[364766892,1749234637956,-2183.31810187,0.00026281,2]
[364766894,1749234637965,-800.0,0.00026329,4]
[364766896,1749234637974,-993.77830091,0.00026336,2]
[364766898,1749234637983,-1852.42,0.00026387,2]
[364766900,1749234637992,-366.996924,0.000264,2]
[364766902,1749234638001,-169.01,0.00026443,2]
[364766904,1749234638011,-7396.87,0.00026464,2]
[364766906,1749234638020,-845.66921566,0.00026521,15]
[364766908,1749234638029,-212.75,0.00026575,2]
[364766910,1749234638038,-212.08120143,0.00026664,2]
[364766912,1749234638047,-157.38,0.00026676,2]
[364766914,1749234638056,-203.0,0.00026887,6]
[364766916,1749234638066,-800.0,0.000269,9]
[364766918,1749234638075,-6750.0496,0.00026987,2]
[364766920,1749234638084,-227.6154,0.00026987,2]
[364766921,1749234638101,-2151.88873362,0.00026987,2]
[364766924,1749234638116,-1802.87406638,0.00026987,2]
[364766926,1749234638125,-2081.3973,0.00026987,2]
[364766928,1749234638134,-179.0,0.00027,7]
[364766930,1749234638144,-156.46,0.00027024,2]
[364766932,1749234638153,-845.66921566,0.00027038,16]
[364766934,1749234638163,-2509.55661349,0.00027087,2]
[364766937,1749234638172,-1000.0,0.00027097,2]
[364766940,1749234638183,-2500.0,0.00027097,2]
[364766943,1749234638191,-1680.0,0.00027099,2]
[364766945,1749234638200,-1306.11366082,0.00027116,2]
[364766950,1749234638230,-1640.55,0.00027116,2]
[364766952,1749234638246,-545.04692068,0.00027116,2]
[364766955,1749234638260,-93.79026054,0.00027116,2]
[364766956,1749234638271,-4929.47074,0.0002712,2]
[364766959,1749234638280,-165.0,0.00027132,2]
[364766960,1749234638289,-594.82396334,0.00027136,12]
[364766962,1749234638299,-162.37876572,0.00027151,2]
[364766964,1749234638309,-3585.50084201,0.00027154,2]
[364766966,1749234638318,-98.77429862,0.00027187,2]
[364767112,1749234639807,-401.22570138,0.00027187,2]
[364767114,1749234639816,-36058.946,0.00027187,2]
[364767116,1749234639826,-29180.4425464,0.00027187,2]
[364767118,1749234639836,-3585.50084201,0.00027193,2]
[364767120,1749234639845,-159.9968523,0.00027196,2]
[364767121,1749234639855,-1000.0,0.00027197,2]
[364767123,1749234639864,-187582.5771,0.00027197,2]
[364767125,1749234639873,-1000.0,0.00027216,2]
[364767126,1749234639882,-3585.50084201,0.00027231,2]
[364767128,1749234639891,-14590.2212732,0.00027251,2]
[364767130,1749234639900,-3585.50084201,0.00027269,2]
[364767132,1749234639909,-1642.26,0.0002727,2]
[364767134,1749234639919,-166.67,0.00027272,2]
[364767135,1749234639928,-2509.55661341,0.00027275,2]
[364767137,1749234639938,-1243.25716919,0.00027296,2]
[364767139,1749234639948,-5000.0,0.00027297,2]
[364767141,1749234639957,-3585.50084201,0.00027308,2]
[364767142,1749234639967,-3585.50084201,0.00027346,2]
[364767144,1749234639976,-14590.2212732,0.00027367,2]
[364767146,1749234639985,-1243.25716919,0.00027369,2]
[364767148,1749234639995,-503.096754,0.00027371,6]
[364767150,1749234640004,-504.52442924,0.00027373,2]
[364767151,1749234640014,-504.02094777,0.00027373,2]
[364767153,1749234640023,-500.0,0.00027373,2]
[364767155,1749234640032,-500.0,0.00027373,2]
[364767157,1749234640041,-159.78811227,0.00027373,2]
[364767158,1749234640051,-500.0,0.00027373,2]
[364767160,1749234640060,-500.0,0.00027373,2]
[364767162,1749234640069,-43770.6638196,0.00027377,2]
[364767164,1749234640078,-21337.126809,0.00027377,2]
[364767165,1749234640088,-3585.50084201,0.00027384,2]
[364767167,1749234640098,-204263.097825,0.00027387,2]
[364767169,1749234640107,-38794.7760164,0.00027387,2]
[364767171,1749234640116,-152.5,0.00027387,2]
[364767172,1749234640125,-241.5530359,0.00027387,2]
[364767174,1749234640134,-228.23248437,0.00027396,2]
[364767176,1749234640143,-162.89521663,0.00027396,2]
[364767178,1749234640152,-480.0,0.00027397,5]
[364767180,1749234640161,-480.0,0.00027397,5]
[364767182,1749234640171,-480.0,0.00027397,5]
[364767183,1749234640180,-262.16022886,0.00027397,5]
[364767185,1749234640189,-480.0,0.00027397,5]
[364767195,1749234640311,-480.0,0.00027397,5]
[364767198,1749234640335,-480.0,0.00027397,5]
[364767200,1749234640345,-480.0,0.00027397,5]
[364767202,1749234640355,-480.0,0.00027397,5]
[364767204,1749234640364,-480.0,0.00027397,5]
[364767206,1749234640374,-480.0,0.00027397,5]
[364767208,1749234640383,-480.0,0.00027397,5]
[364767209,1749234640392,-626.84067131,0.00027397,5]
[364767211,1749234640403,-480.0,0.00027397,5]
[364767213,1749234640414,-480.0,0.00027397,5]
[364767215,1749234640423,-244.51629054,0.00027397,5]
[364767217,1749234640432,-480.0,0.00027397,5]
[364767218,1749234640442,-480.0,0.00027397,5]
[364767220,1749234640451,-480.0,0.00027397,5]
[364767222,1749234640460,-480.0,0.00027397,5]
[364767224,1749234640469,-480.0,0.00027397,5]
[364767226,1749234640479,-480.0,0.00027397,5]
[364767228,1749234640488,-1600.77,0.00027397,5]
[364767229,1749234640497,-480.0,0.00027397,5]
[364767231,1749234640507,-480.0,0.00027397,5]
[364767233,1749234640516,-480.0,0.00027397,5]
[364767235,1749234640525,-480.0,0.00027397,5]
[364767237,1749234640535,-480.0,0.00027397,5]
[364767239,1749234640544,-480.0,0.00027397,5]
[364767241,1749234640555,-480.0,0.00027397,5]
[364767242,1749234640564,-480.0,0.00027397,5]
[364767244,1749234640573,-480.0,0.00027397,5]
[364767246,1749234640582,-480.0,0.00027397,5]
[364767248,1749234640592,-937.01,0.00027397,5]
[364767250,1749234640604,-480.0,0.00027397,5]
[364767252,1749234640613,-230.27736612,0.00027397,5]
[364767254,1749234640622,-600.0,0.00027397,30]
[364767256,1749234640632,-643.9,0.00027397,5]
[364767258,1749234640641,-1040.25,0.00027397,5]
[364767259,1749234640651,-480.0,0.00027397,5]
[364767261,1749234640661,-499.99,0.00027397,5]
[364767263,1749234640671,-530.52,0.00027397,5]
[364767265,1749234640680,-480.0,0.00027397,5]
[364767267,1749234640690,-480.0,0.00027397,5]
[364767269,1749234640699,-1117.55,0.00027397,5]
[364767270,1749234640708,-480.0,0.00027397,5]
[364767272,1749234640717,-790.35,0.00027397,5]
[364767274,1749234640726,-480.0,0.00027397,5]
[364767276,1749234640735,-932.64,0.00027397,5]
[364767278,1749234640744,-480.0,0.00027397,5]
[364767280,1749234640754,-480.0,0.00027397,5]
[364767282,1749234640763,-480.0,0.00027397,5]
[364767284,1749234640772,-480.0,0.00027397,5]
[364767285,1749234640782,-480.0,0.00027397,5]
[364767287,1749234640791,-480.0,0.00027397,5]
[364767289,1749234640801,-480.0,0.00027397,5]
[364767291,1749234640810,-713.78,0.00027397,5]
[364767293,1749234640819,-480.0,0.00027397,5]
[364767295,1749234640828,-640.47,0.00027397,5]
[364767297,1749234640838,-480.0,0.00027397,5]
[364767298,1749234640848,-559.45,0.00027397,5]
[364767300,1749234640858,-480.0,0.00027397,5]
[364767302,1749234640867,-500.0,0.00027397,2]
[364767304,1749234640877,-500.0,0.00027397,2]
[364767306,1749234640886,-480.0,0.00027397,5]
[364767308,1749234640895,-680.56,0.00027397,5]
[364767310,1749234640905,-480.0,0.00027397,5]
[364767311,1749234640914,-480.0,0.00027397,5]
[364767313,1749234640923,-480.0,0.00027397,5]
[364767315,1749234640934,-480.0,0.00027397,5]
[364767317,1749234640943,-542.8,0.00027397,5]
[364767319,1749234640952,-813.85,0.00027397,5]
[364767321,1749234640962,-480.0,0.00027397,5]
[364767323,1749234640971,-298.05959272,0.00027397,5]
[364767325,1749234640980,-480.0,0.00027397,5]
[364767327,1749234640989,-480.0,0.00027397,5]
[364767328,1749234640999,-480.0,0.00027397,5]
[364767330,1749234641008,-480.0,0.00027397,5]
[364767332,1749234641017,-480.0,0.00027397,5]
[364767334,1749234641027,-875.7,0.00027397,5]
[364767336,1749234641036,-480.0,0.00027397,5]
[364767338,1749234641045,-480.0,0.00027397,5]
[364767340,1749234641055,-480.0,0.00027397,5]
[364767341,1749234641064,-519.54,0.00027397,5]
[364767343,1749234641073,-480.0,0.00027397,5]
[364767345,1749234641083,-480.0,0.00027397,5]
[364767347,1749234641092,-807.27,0.00027397,5]
[364767349,1749234641103,-365.144635,0.00027397,5]